fUST/lending_fUST_20250620
["ID","MTS","AMOUNT","RATE_DAILY","PERIOD"]
[366667201,1750397434983,-466.61256835,0.00022196,6]
[366667202,1750397434992,-379.74896002,0.00022196,6]
[366667203,1750397435002,-477.9223269,0.00022196,6]
[366667204,1750397435011,-441.58544232,0.00022196,6]
[366667205,1750397435021,-460.0,0.00022196,6]
[366667206,1750397435030,-460.0,0.00022196,6]
[366667207,1750397435040,-460.0,0.00022196,6]
[366667208,1750397435049,-485.10841771,0.00022196,6]
[366667209,1750397435059,-502.93358091,0.00022198,6]
[366667210,1750397435068,-154.0,0.000222,6]
[366667211,1750397435078,-155.78409547,0.000222,69]
[366667212,1750397435087,-198.775164,0.00022244,6]
[366667213,1750397435097,-156.56154144,0.00022244,6]
[366667214,1750397435106,-156.00403038,0.00022244,6]
[366667215,1750397435116,-154.94484772,0.00022244,6]
[366667216,1750397435126,-151.0,0.00022244,6]
[366667217,1750397435134,-151.86772385,0.00022244,6]
[366667218,1750397435144,-154.15276606,0.00022244,6]
[366667219,1750397435154,-154.07651348,0.00022244,6]
[366667220,1750397435163,-151.44062022,0.00022244,2]
[366667221,1750397435173,-151.31755863,0.00022244,2]
[366667222,1750397435182,-151.37515572,0.00022244,6]
[366667223,1750397435192,-151.40631103,0.00022244,6]
[366667224,1750397435201,-151.0,0.00022244,6]
[366667225,1750397435210,-151.0,0.00022244,6]
[366667226,1750397435220,-151.0,0.00022244,6]
[366667227,1750397435230,-155.11705586,0.00022244,6]
[366667228,1750397435239,-154.03968118,0.00022244,6]
[366667229,1750397435249,-156.49067419,0.00022244,6]
[366667230,1750397435258,-538.86,0.00022262,3]
[366667231,1750397435268,-1077.72,0.00022263,3]
[366667232,1750397435277,-269.43,0.00022263,3]
[366667233,1750397435287,-500.0,0.00022271,2]
[366667234,1750397435298,-151.0,0.00022271,6]
[366667235,1750397435309,-151.0,0.00022271,6]
[366667236,1750397435319,-477.73084683,0.00022272,6]
[366667237,1750397435329,-599.11736222,0.00022273,2]
[366667238,1750397435340,-637.94065597,0.00022273,2]
[366667239,1750397435351,-502.40368874,0.00022273,2]
[366667240,1750397435362,-617.00153504,0.00022273,2]
[366667241,1750397435371,-331.25059953,0.00022273,2]
[366667242,1750397435381,-500.0,0.00022273,2]
[366667243,1750397435390,-506.45617297,0.00022273,2]
[366667244,1750397435400,-470.97145849,0.00022273,6]
[366667245,1750397435410,-498.6125136,0.00022273,6]
[366667246,1750397435419,-409.4748433,0.00022273,6]
[366667247,1750397435429,-579.75555739,0.00022273,6]
[366667248,1750397435441,-460.0,0.00022273,6]
[366667249,1750397435459,-481.12602358,0.00022273,6]
[366667250,1750397435472,-825.27,0.00022273,6]
[366667251,1750397435483,-508.866443,0.00022273,6]
[366667252,1750397435493,-476.45581029,0.00022273,6]
[366667253,1750397435503,-460.0,0.00022273,6]
[366667254,1750397435517,-413.35809078,0.00022273,6]
[366667255,1750397435529,-480.34761658,0.00022273,6]
[366667256,1750397435540,-460.0,0.00022273,6]
[366667257,1750397435550,-515.63884315,0.00022273,6]
[366667258,1750397435560,-419.22549664,0.00022273,6]
[366667259,1750397435570,-574.57808278,0.00022273,6]
[366667260,1750397435580,-460.0,0.00022273,6]
[366667261,1750397435590,-445.86913441,0.00022273,6]
[366667262,1750397435600,-462.31770329,0.00022273,6]
[366667263,1750397435610,-421.8078106,0.00022273,6]
[366667264,1750397435620,-500.0,0.00022275,2]
[366667265,1750397435630,-500.0,0.00022276,2]
[366667266,1750397435640,-160.0,0.00022276,2]
[366667267,1750397435650,-16235.0771288,0.00022277,2]
[366667268,1750397435660,-3225.72513512,0.00022277,2]
[366667285,1750397438023,-179.69184279,0.00020948,2]
[366667287,1750397438034,-460.0,0.00021917,6]
[366667289,1750397438043,-264.75138901,0.00022191,6]
[366667291,1750397438055,-195.24861099,0.00022191,6]
[366667293,1750397438065,-5745.65442066,0.00022277,2]
[366667295,1750397438080,-501.56570613,0.00022277,2]
[366667298,1750397438090,-240.01793276,0.00022277,6]
[366667303,1750397438139,-219.98206724,0.00022277,6]
[366667305,1750397438148,-471.81230209,0.00022277,6]
[366667307,1750397438158,-140.44857553,0.00022277,6]
[366667364,1750397443365,-319.55142447,0.00022277,6]
[366667367,1750397443375,-673.3,0.00022277,6]
[366667368,1750397443385,-460.0,0.00022277,6]
[366667370,1750397443395,-369.93628441,0.00022277,6]
[366667372,1750397443404,-407.31311882,0.00022277,6]
[366667374,1750397443413,-440.84118715,0.00022277,6]
[366667376,1750397443423,-160.0,0.00022282,2]
[366667378,1750397443433,-846.08887863,0.00022282,2]
[366667381,1750397443446,-230.06456406,0.00022282,2]
[366667382,1750397443456,-836.27303475,0.00022282,2]
[366667384,1750397443466,-160.0,0.00022283,2]
[366667387,1750397443476,-424.85694595,0.00022284,2]
[366667388,1750397443486,-160.0,0.00022284,2]
[366667390,1750397443496,-212.63294003,0.00022299,6]
[366667392,1750397443506,-198.0,0.00022299,6]
[366667394,1750397443517,-85441.16,0.000223,7]
[366667396,1750397443528,-2577.75,0.000223,7]
[366667398,1750397443537,-846.08887863,0.000223,7]
[366667401,1750397443547,-1617.77142458,0.00022314,7]
[366667403,1750397443556,-808.29,0.00022404,3]
[366667404,1750397443566,-500.0,0.00022412,2]
[366667406,1750397443575,-500.0,0.00022413,2]
[366667408,1750397443586,-5000.0,0.00022414,2]
[366667411,1750397443596,-207.4,0.00022414,2]
[366667413,1750397443605,-21535.40754118,0.00022414,2]
[366667415,1750397443615,-1617.77142458,0.00022452,7]
[366667419,1750397443624,-250.0,0.00022452,2]
[366667421,1750397443634,-3619.78,0.00022465,2]
[366667424,1750397443643,-460.0,0.00022465,6]
[366667427,1750397443653,-460.0,0.00022465,6]
[366667431,1750397443662,-460.0,0.00022465,6]
[366667433,1750397443672,-169.08,0.00022465,6]
[366667435,1750397443681,-839.41,0.00022465,6]
[366667438,1750397443691,-201.85,0.00022465,6]
[366667439,1750397443700,-460.0,0.00022465,6]
[366667443,1750397443712,-571.95922449,0.00022465,6]
[366667446,1750397443722,-460.0,0.00022465,6]
[366667450,1750397443731,-460.0,0.00022465,2]
[366667453,1750397443742,-460.0,0.00022465,6]
[366667455,1750397443751,-460.0,0.00022465,6]
[366667457,1750397443761,-460.0,0.0002247,6]
[366667459,1750397443770,-460.0,0.0002247,6]
[366667461,1750397443780,-460.0,0.0002247,6]
[366667463,1750397443789,-478.6084764,0.0002247,6]
[366667465,1750397443798,-1000.0,0.00022472,2]
[366667467,1750397443807,-291.82944297,0.00022495,2]
[366667469,1750397443816,-559.51,0.000225,7]
[366667471,1750397443826,-825.27,0.00022547,6]
[366667473,1750397443836,-460.0,0.00022551,6]
[366667475,1750397443846,-246.02022389,0.00022551,6]
[366667477,1750397443856,-673.3,0.00022551,6]
[366667479,1750397443865,-460.0,0.00022551,6]
[366667481,1750397443874,-1617.77142458,0.0002259,7]
[366667483,1750397443883,-1617.77142458,0.00022728,7]
[366667484,1750397443892,-783.31928226,0.00022739,2]
[366667487,1750397443905,-661.96922449,0.00022739,2]
[366667489,1750397443917,-2174.49149325,0.00022739,2]
[366667491,1750397443927,-460.0,0.00022739,6]
[366667493,1750397443936,-460.0,0.00022739,6]
[366667494,1750397443945,-460.0,0.00022739,6]
[366667496,1750397443955,-839.41,0.00022739,6]
[366667498,1750397443964,-460.0,0.00022739,6]
[366667499,1750397443973,-460.0,0.00022739,6]
[366667500,1750397443983,-310.88817846,0.00022739,2]
[366667513,1750397493503,235.8,0.00023278,120]
[366667516,1750397562266,7042.32,0.000202,2]
[366667517,1750397564377,-230.70562783,0.00020834,2]
[366667518,1750397609514,-150.0,0.00020314,2]
[366667520,1750397626816,-236.03405117,0.00020314,2]
[366667521,1750397687774,5000.0,0.000202,2]
[366667522,1750397704321,4719.67648214,0.000202,2]
[366667523,1750397972983,5000.0,0.000202,2]
[366667524,1750397988644,3734.50990459,0.000202,2]
[366667525,1750398024952,-234.08773576,0.00020314,2]
[366667526,1750398024974,-177.414,0.00020599,2]
[366667527,1750398024997,-150.217,0.00020599,2]
[366667528,1750398025019,-7357.28126424,0.00020669,2]
[366667529,1750398091672,150.5,0.0002349,120]
[366667530,1750398092126,150.5,0.0002348,120]
[366667531,1750398092216,150.5,0.0002349,120]
[366667532,1750398092618,150.5,0.0002347,120]
[366667533,1750398092667,150.5,0.0002348,120]
[366667534,1750398093123,220.0,0.0002349,120]
[366667535,1750398093155,157.95,0.0002347,120]
[366667536,1750398093615,220.0,0.0002348,120]
[366667537,1750398094043,220.0,0.0002347,120]
[366667538,1750398099354,500.0,0.000234,120]
[366667539,1750398100062,500.0,0.000234,120]
[366667541,1750398102044,500.0,0.000234,120]
[366667542,1750398102836,500.0,0.000234,120]
[366667543,1750398103635,500.0,0.000234,120]
[366667544,1750398104414,500.0,0.000234,120]
[366667545,1750398105634,500.0,0.000234,120]
[366667546,1750398106428,500.0,0.000234,120]
[366667547,1750398107240,500.0,0.000234,120]
[366667548,1750398108025,500.0,0.000234,120]
[366667549,1750398108802,500.0,0.000234,120]
[366667550,1750398109595,500.0,0.000234,120]
[366667551,1750398110381,500.0,0.000234,120]
[366667552,1750398111897,500.0,0.000234,120]
[366667553,1750398112664,500.0,0.000234,120]
[366667554,1750398113055,150.32930165,0.00025123,60]
[366667555,1750398113440,500.0,0.000234,120]
[366667556,1750398114234,500.0,0.000234,120]
[366667557,1750398115021,500.0,0.000234,120]
[366667558,1750398115794,500.0,0.000234,120]
[366667559,1750398116635,500.0,0.000234,120]
[366667560,1750398117409,500.0,0.000234,120]
[366667561,1750398118230,500.0,0.000234,120]
[366667562,1750398118999,500.0,0.000234,120]
[366667563,1750398119764,500.0,0.000234,120]
[366667564,1750398120533,500.0,0.000234,120]
[366667565,1750398121304,500.0,0.000234,120]
[366667566,1750398122080,500.0,0.000234,120]
[366667567,1750398122852,500.0,0.000234,120]
[366667568,1750398123670,500.0,0.000234,120]
[366667569,1750398124443,500.0,0.000234,120]
[366667570,1750398125254,500.0,0.000234,120]
[366667571,1750398126026,500.0,0.000234,120]
[366667572,1750398126812,500.0,0.000234,120]
[366667573,1750398128065,500.0,0.000234,120]
[366667574,1750398128866,500.0,0.000234,120]
[366667575,1750398129005,7640.36549446,0.000202,2]
[366667576,1750398129670,500.0,0.000234,120]
[366667577,1750398130453,500.0,0.000234,120]
[366667578,1750398131251,500.0,0.000234,120]
[366667579,1750398132025,500.0,0.000234,120]
[366667580,1750398132813,500.0,0.000234,120]
[366667581,1750398133611,500.0,0.000234,120]
[366667582,1750398134396,500.0,0.000234,120]
[366667583,1750398135180,500.0,0.000234,120]
[366667584,1750398135952,500.0,0.000234,120]
[366667585,1750398136713,500.0,0.000234,120]
[366667586,1750398137677,500.0,0.000234,120]
[366667587,1750398138444,500.0,0.000234,120]
[366667588,1750398139252,500.0,0.000234,120]
[366667589,1750398139990,500.0,0.000234,120]
[366667590,1750398140764,500.0,0.000234,120]
[366667591,1750398141527,500.0,0.000234,120]
[366667592,1750398142307,500.0,0.000234,120]
[366667593,1750398143080,500.0,0.000234,120]
[366667594,1750398143864,500.0,0.000234,120]
[366667595,1750398144630,500.0,0.000234,120]
[366667596,1750398145403,500.0,0.000234,120]
[366667597,1750398146210,500.0,0.000234,120]
[366667598,1750398146987,500.0,0.000234,120]
[366667599,1750398147854,500.0,0.000234,120]
[366667600,1750398148624,500.0,0.000234,120]
[366667601,1750398149403,500.0,0.000234,120]
[366667602,1750398150942,200.0,0.00024234,120]
[366667603,1750398151364,500.0,0.000234,120]
[366667604,1750398152147,500.0,0.000234,120]
[366667605,1750398152931,500.0,0.000234,120]
[366667606,1750398153705,500.0,0.000234,120]
[366667607,1750398154481,500.0,0.000234,120]
[366667608,1750398155266,500.0,0.000234,120]
[366667609,1750398156031,500.0,0.000234,120]
[366667610,1750398156834,500.0,0.000234,120]
[366667611,1750398157655,500.0,0.000234,120]
[366667612,1750398158530,500.0,0.000234,120]
[366667613,1750398159304,205.84,0.000234,120]
[366667614,1750398213134,150.5,0.0002329,120]
[366667615,1750398213656,150.5,0.0002328,120]
[366667616,1750398214118,150.5,0.0002327,120]
[366667617,1750398223501,5000.0,0.000202,2]
[366667618,1750398225216,500.0,0.000234,120]
[366667619,1750398225834,500.0,0.000234,120]
[366667620,1750398226819,500.0,0.000234,120]
[366667621,1750398227629,500.0,0.000234,120]
[366667622,1750398228410,500.0,0.000234,120]
[366667623,1750398238923,2918.61972912,0.000202,2]
[366667624,1750398278777,346.78719127,0.00019678,2]
[366667627,1750398401289,-151.0,0.0002049,2]
[366667628,1750398417637,151.0,0.000202,2]
[366667629,1750398450763,200.0,0.00024134,120]
[366667630,1750398451454,182.155054,0.00020685,120]
[366667631,1750398451810,-5.05849051,0.0002049,2]
[366667632,1750398451833,-145.20649517,0.0002063,2]
[366667634,1750398453619,150.5,0.0002329,120]
[366667635,1750398454097,150.5,0.0002328,120]
[366667636,1750398454549,150.5,0.0002327,120]
[366667637,1750398503189,2000.0,0.00020486,120]
[366667641,1750398631411,200.0,0.00023679,120]
[366667672,1750398632177,-150.26498568,0.00020424,2]
[366667674,1750398632187,-150.62600173,0.0002063,2]
[366667676,1750398632198,-151.96957684,0.00020669,2]
[366667678,1750398632211,-150.40242582,0.00020669,2]
[366667680,1750398632221,-182.155054,0.00020685,2]
[366667681,1750398632232,-173.2554744,0.00020688,2]
[366667682,1750398632242,-160.808104,0.00020774,2]
[366667683,1750398632252,-160.0,0.00021052,2]
[366667684,1750398632263,-361.72337189,0.00021112,2]
[366667685,1750398632273,-150.0,0.000213,2]
[366667686,1750398632283,-119.56967428,0.00021428,2]
[366667687,1750398632309,-433.7560304,0.00021428,2]
[366667688,1750398632319,-909.4,0.0002181,2]
[366667689,1750398632328,-300.0,0.00021816,2]
[366667690,1750398632339,-300.0,0.00021816,2]
[366667691,1750398632350,-254.0,0.00021816,2]
[366667692,1750398632361,-1200.0,0.00021816,2]
[366667693,1750398632371,-13704.91108372,0.00021817,2]
[366667694,1750398632386,-2069.13376945,0.00021817,2]
[366667695,1750398632396,-179.69184279,0.00021817,2]
[366667696,1750398632407,-300.0,0.00021833,2]
[366667697,1750398632418,-150.218,0.000219,2]
[366667698,1750398632428,-1514.39384787,0.000219,6]
[366667699,1750398632438,-460.0,0.00021917,6]
[366667700,1750398632448,-460.0,0.00021917,6]
[366667702,1750398632458,-472.4070669,0.00021917,6]
[366667703,1750398632473,-419.64771371,0.00021917,6]
[366667704,1750398632483,-471.80308266,0.00021917,6]
[366667705,1750398632493,-495.13070507,0.00021917,6]
[366667706,1750398632503,-547.12305648,0.00021917,6]
[366667707,1750398632513,-400.22030454,0.00021917,6]
[366667708,1750398632523,-377.89010797,0.00021917,6]
[366667709,1750398632533,-466.01310439,0.00021917,6]
[366667710,1750398632543,-390.0,0.00021917,6]
[366667711,1750398632553,-460.0,0.00021917,6]
[366667712,1750398632563,-500.0,0.00021917,2]
[366667713,1750398632573,-460.0,0.00021917,6]
[366667714,1750398632583,-475.54587946,0.00021917,6]
[366667715,1750398632593,-460.0,0.00021917,6]
[366667716,1750398632603,-431.70162783,0.00021917,6]
[366667717,1750398632613,-460.0,0.00021917,2]
[366667718,1750398632624,-3016.48,0.00021917,2]
[366667719,1750398632634,-460.0,0.00021917,6]
[366667720,1750398632643,-507.50500775,0.00021917,6]
[366667721,1750398632653,-818.51,0.00021917,6]
[366667722,1750398632663,-366.20862642,0.00021917,6]
[366667723,1750398632672,-382.62141146,0.00021917,6]
[366667724,1750398632682,-467.98695914,0.00021917,6]
[366667725,1750398632691,-471.92737074,0.00021917,6]
[366667726,1750398632702,-500.0,0.00021917,6]
[366667727,1750398632711,-475.0431868,0.00021917,6]
[366667728,1750398632721,-393.61044101,0.00021917,6]
[366667729,1750398632731,-478.87731816,0.00021917,6]
[366667730,1750398632741,-500.0,0.00021917,2]
[366667731,1750398632751,-500.0,0.00021917,2]
[366667732,1750398632760,-460.0,0.00021917,6]
[366667733,1750398632771,-460.0,0.00021917,6]
[366667734,1750398632781,-460.0,0.00021917,6]
[366667735,1750398632790,-460.0,0.00021917,6]
[366667736,1750398632800,-478.93753493,0.00021917,6]
[366667737,1750398632810,-437.5163436,0.00021917,6]
[366667738,1750398632819,-460.0,0.00021917,6]
[366667739,1750398632829,-460.0,0.00021917,6]
[366667740,1750398632839,-460.0,0.00021917,6]
[366667741,1750398632848,-402.5933611,0.00021917,6]
[366667742,1750398632858,-460.0,0.00021917,6]
[366667743,1750398632868,-413.71325849,0.00021917,6]
[366667744,1750398632878,-460.0,0.00021917,6]
[366667745,1750398632888,-460.0,0.00021917,6]
[366667746,1750398632900,-460.0,0.00021917,6]
[366667747,1750398632909,-460.0,0.00021917,6]
[366667748,1750398632920,-460.0,0.00021917,6]
[366667749,1750398632930,-460.0,0.00021917,6]
[366667750,1750398632941,-460.0,0.00021917,6]
[366667751,1750398632951,-483.63682239,0.00021917,6]
[366667752,1750398632961,-484.6164236,0.00021917,6]
[366667753,1750398632971,-460.0,0.00021917,6]
[366667754,1750398632981,-460.0,0.00021917,6]
[366667755,1750398632991,-482.35509549,0.00021917,6]
[366667756,1750398633001,-475.54302125,0.00021917,6]
[366667757,1750398633011,-460.0,0.00021917,6]
[366667758,1750398633021,-465.02704443,0.00021917,6]
[366667759,1750398633031,-433.24418032,0.00021917,6]
[366667760,1750398633041,-460.0,0.00021917,6]
[366667761,1750398633051,-460.0,0.00021917,6]
[366667762,1750398633061,-460.0,0.00021917,6]
[366667763,1750398633075,-460.0,0.00021917,6]
[366667764,1750398633088,-699.51,0.00021917,6]
[366667765,1750398633098,-460.0,0.00021917,6]
[366667766,1750398633108,-430.0,0.00021917,6]
[366667767,1750398633119,-231.38154714,0.00021917,6]
[366667768,1750398633129,-470.78043632,0.00021917,6]
[366667769,1750398633138,-357.30295542,0.00021917,6]
[366667770,1750398633149,-468.8777859,0.00021917,6]
[366667771,1750398633160,-460.0,0.00021917,6]
[366667772,1750398633172,-285.38916163,0.00021917,6]
[366667773,1750398633182,-460.0,0.00021917,6]
[366667774,1750398633192,-460.0,0.00021917,6]
[366667775,1750398633203,-460.0,0.00021917,6]
[366667776,1750398633213,-424.48082374,0.00021917,6]
[366667777,1750398633223,-460.0,0.00021917,6]
[366667778,1750398633234,-560.72218758,0.00021917,6]
[366667779,1750398633244,-460.0,0.00021917,6]
[366667780,1750398633254,-460.0,0.00021917,6]
[366667781,1750398633263,-460.0,0.00021917,6]
[366667782,1750398633274,-460.0,0.00021917,6]
[366667783,1750398633284,-467.84179581,0.00021917,6]
[366667784,1750398633294,-460.0,0.00021917,6]
[366667785,1750398633304,-460.0,0.00021917,6]
[366667786,1750398633314,-452.23555197,0.00021917,6]
[366667787,1750398633325,-468.085072,0.00021917,6]
[366667788,1750398633335,-168.0,0.00021991,2]
[366667789,1750398633345,-174.0,0.00022,2]
[366667790,1750398633355,-1514.3938478,0.00022038,6]
[366667791,1750398633365,-482.78667956,0.0002208,2]
[366667792,1750398633375,-365.6807665,0.00022137,2]
[366667793,1750398633385,-365.6807665,0.00022137,2]
[366667794,1750398633395,-365.6807665,0.00022137,2]
[366667795,1750398633405,-290.1892818,0.00022137,2]
[366667796,1750398633414,-500.0,0.00022138,2]
[366667797,1750398633577,-469.58064687,0.00022164,2]
[366667798,1750398633590,-503.3927133,0.00022164,2]
[366667799,1750398633600,-500.0,0.00022169,2]
[366667800,1750398633611,-1514.3938478,0.00022176,6]
[366667801,1750398633620,-500.0,0.00022188,2]
[366667802,1750398633630,-500.0,0.00022188,2]
[366667803,1750398633641,-500.0,0.00022188,2]
[366667804,1750398633651,-260.73059272,0.00022188,2]
[366667805,1750398633661,-500.0,0.00022188,2]
[366667806,1750398633671,-500.0,0.00022188,2]
[366667807,1750398633681,-500.0,0.00022188,2]
[366667808,1750398633691,-500.0,0.00022188,2]
[366667809,1750398633701,-460.0,0.00022191,6]
[366667810,1750398633712,-460.0,0.00022191,2]
[366667811,1750398633722,-3016.48,0.00022191,2]
[366667812,1750398633732,-460.0,0.00022191,6]
[366667813,1750398633742,-818.51,0.00022191,6]
[366667814,1750398633752,-460.0,0.00022191,6]
[366667815,1750398633763,-460.0,0.00022191,6]
[366667816,1750398633772,-460.0,0.00022191,6]
[366667817,1750398633783,-460.0,0.00022191,6]
[366667818,1750398633793,-460.0,0.00022191,6]
[366667819,1750398633803,-547.07,0.00022191,6]
[366667820,1750398633812,-409.89,0.00022191,6]
[366667821,1750398633822,-460.0,0.00022191,6]
[366667822,1750398633833,-460.0,0.00022191,6]
[366667823,1750398633842,-699.51,0.00022191,6]
[366667824,1750398633852,-476.01041788,0.00022196,6]
[366667825,1750398633862,-460.0,0.00022196,6]
[366667826,1750398633872,-512.42945835,0.00022196,6]
[366667827,1750398633882,-636.36,0.00022196,6]
[366667828,1750398633893,-460.0,0.00022196,6]
[366667829,1750398633903,-339.18713737,0.00022196,6]
[366667830,1750398633912,-187.01799039,0.00022223,2]
[366667831,1750398633922,-500.0,0.0002225,2]
[366667832,1750398633946,-505.36277811,0.00022272,2]
[366667833,1750398633957,-158.19157302,0.00022298,2]
[366667834,1750398634079,-341.80842698,0.00022298,2]
[366667835,1750398634090,-274.34914166,0.00022299,6]
[366667836,1750398634102,-527.60799812,0.00022299,6]
[366667837,1750398634114,-198.04286022,0.00022299,6]
[366667838,1750398634124,-526.51243183,0.00022299,6]
[366667839,1750398634134,-286.4131265,0.00022314,7]
[366667840,1750398634146,-562.6195265,0.00022314,7]
[366667841,1750398634159,-665.3611948,0.00022314,7]
[366667842,1750398634169,-709.59188701,0.00022346,2]
[366667843,1750398634187,-126.68114774,0.00022346,2]
[366667844,1750398634197,-160.0,0.00022346,2]
[366667845,1750398634207,-846.08887863,0.00022346,2]
[366667846,1750398634217,-201.73896503,0.00022365,2]
[366667847,1750398634226,-178.12,0.00022404,10]
[366667848,1750398634236,-57.4535746,0.00022414,2]
[366667849,1750398634248,-884.86744297,0.00022414,2]
[366667850,1750398634260,-4057.67898243,0.00022414,2]
[366667851,1750398634270,-207.4,0.00022414,2]
[366667852,1750398634280,-160.0,0.00022422,2]
[366667853,1750398634289,-127.56355112,0.00022452,7]
[366667854,1750398634301,-352.82068636,0.00022452,7]
[366667863,1750398638253,-162.0,0.00021816,2]
[366667865,1750398638263,-294.9916382,0.00021816,2]
[366667867,1750398638273,-500.0,0.00021816,2]
[366667870,1750398638282,-173.80176819,0.00021816,2]
[366667872,1750398638292,-307.66851386,0.00021816,2]
[366667874,1750398638302,-500.0,0.00021816,2]
[366667876,1750398638311,-604.1359145,0.00021816,2]
[366667878,1750398638321,-377.1471811,0.00021816,2]
[366667880,1750398638330,-460.0,0.00021917,2]
[366667882,1750398638339,-500.0,0.00022188,2]
[366667884,1750398638349,-500.0,0.00022188,2]
[366667886,1750398638358,-500.0,0.00022188,2]
[366667888,1750398638367,-279.21135444,0.00022191,2]
[366667890,1750398638379,-180.78864556,0.00022191,2]
[366667892,1750398638389,-1034.00961032,0.00022452,7]
[366667894,1750398638398,-77.73688331,0.00022465,6]
[366667896,1750398638409,-382.26311669,0.00022465,6]
[366667898,1750398638418,-500.0,0.00022465,2]
[366667900,1750398638428,-303.26650613,0.00022465,2]
[366667902,1750398638440,-319.54686517,0.00022465,2]
[366667904,1750398638451,-254.32968299,0.00022465,2]
[366667906,1750398638463,-2139.33694571,0.00022465,2]
[366667909,1750398638473,-460.0,0.00022465,6]
[366667911,1750398638483,-818.51,0.00022465,6]
[366667912,1750398638493,-460.0,0.00022465,6]
[366667915,1750398638503,-460.0,0.00022465,6]
[366667917,1750398638512,-460.0,0.00022465,6]
[366667919,1750398638522,-361.4092181,0.00022465,6]
[366667921,1750398638532,-460.0,0.00022465,6]
[366667923,1750398638541,-366.4403585,0.00022465,6]
[366667925,1750398638553,-93.5596415,0.00022465,6]
[366667927,1750398638563,-460.0,0.00022465,6]
[366667929,1750398638572,-699.51,0.00022465,6]
[366667931,1750398638582,-460.0,0.00022465,2]
[366667933,1750398638592,-361.40618494,0.00022467,2]
[366667935,1750398638602,-317.0,0.00022468,2]
[366667937,1750398638612,-636.36,0.0002247,6]
[366667939,1750398638622,-227.63269291,0.0002247,6]
[366667941,1750398638634,-232.36730709,0.0002247,6]
[366667943,1750398638644,-800.0,0.00022531,2]
[366667945,1750398638654,-156.5761506,0.00022548,2]
[366667947,1750398638664,-153.0,0.00022548,2]
[366667949,1750398638673,-158.8714084,0.00022548,2]
[366667951,1750398638683,-176.9937618,0.00022548,2]
[366667953,1750398638692,-573.7859869,0.00022548,2]
[366667955,1750398638703,-153.0,0.00022548,2]
[366667957,1750398638712,-153.0,0.00022548,2]
[366667959,1750398638722,-153.0,0.00022548,2]
[366667961,1750398638732,-153.0,0.00022548,2]
[366667963,1750398638742,-168.0,0.00022554,2]
[366667965,1750398638752,-500.0,0.00022556,2]
[366667967,1750398638761,-500.0,0.00022559,2]
[366667969,1750398638771,-160.0,0.00022562,2]
[366667971,1750398638783,-800.0,0.00022564,2]
[366667973,1750398638793,-970.3186213,0.00022573,6]
[366668016,1750398640336,-34.24362889,0.00022573,6]
[366668018,1750398640346,-1054.33420909,0.0002259,7]
[366668020,1750398640359,-460.05963871,0.0002259,7]
[366668022,1750398640368,-800.0,0.00022607,2]
[366668024,1750398640378,-298.08192315,0.0002264,2]
[366668026,1750398640388,-800.0,0.00022643,2]